[Event "*** Titled Tuesday Blitz"]
[Site "Chess.com"]
[Date "2020.05.12"]
[Round "3"]
[White "Biranidun"]
[Black "dianosky"]
[Result "1-0"]
[WhiteElo "2673"]
[BlackElo "2411"]
[TimeControl "180+1"]
[EndTime "10:27:25 PDT"]
[Termination "Biranidun won by resignation"]

1. e4 {[%clk 0:03:00.9]} 1... d6 {[%clk 0:02:59.8]} 2. d4 {[%clk 0:03:00.4]}
2... Nf6 {[%clk 0:03:00.3]} 3. Nc3 {[%clk 0:03:01]} 3... g6 {[%clk 0:03:00.8]}
4. Bg5 {[%clk 0:02:59.8]} 4... Bg7 {[%clk 0:03:00.4]} 5. Qd2 {[%clk 0:02:59.7]}
5... h6 {[%clk 0:02:58.9]} 6. Bf4 {[%clk 0:02:58]} 6... g5 {[%clk 0:02:53.5]} 7.
Bg3 {[%clk 0:02:55.6]} 7... d5 {[%clk 0:02:49.1]} 8. exd5 {[%clk 0:02:28.8]}
8... Nxd5 {[%clk 0:02:48.4]} 9. O-O-O {[%clk 0:02:28.5]} 9... a6 {[%clk
0:02:46.7]} 10. Nf3 {[%clk 0:02:28.4]} 10... Nc6 {[%clk 0:02:46.5]} 11. Bc4
{[%clk 0:02:27.9]} 11... Nb6 {[%clk 0:02:41.4]} 12. Bb3 {[%clk 0:02:27]} 12...
g4 {[%clk 0:02:39.2]} 13. Ne5 {[%clk 0:02:22.5]} 13... Nxe5 {[%clk 0:02:38.4]}
14. dxe5 {[%clk 0:02:21.2]} 14... Qxd2+ {[%clk 0:02:37.8]} 15. Rxd2 {[%clk
0:02:22.1]} 15... Bf5 {[%clk 0:02:37.1]} 16. a4 {[%clk 0:02:18]} 16... e6 {[%clk
0:02:34.6]} 17. a5 {[%clk 0:02:17.5]} 17... Nd7 {[%clk 0:02:34.8]} 18. Re1
{[%clk 0:02:14.5]} 18... h5 {[%clk 0:02:31.5]} 19. Kb1 {[%clk 0:02:12]} 19... h4
{[%clk 0:02:22.8]} 20. Bf4 {[%clk 0:02:12.3]} 20... Rh5 {[%clk 0:02:21.2]} 21.
Ba4 {[%clk 0:02:05.3]} 21... c6 {[%clk 0:02:21.2]} 22. Red1 {[%clk 0:01:37.7]}
22... Nc5 {[%clk 0:02:17.3]} 23. b4 {[%clk 0:01:33.9]} 23... Nxa4 {[%clk
0:02:16.3]} 24. Nxa4 {[%clk 0:01:34.8]} 24... Bg6 {[%clk 0:02:13.9]} 25. Nb6
{[%clk 0:01:12.7]} 25... Rb8 {[%clk 0:02:12.6]} 26. Nc4 {[%clk 0:01:05.6]} 26...
Bh6 {[%clk 0:02:01.8]} 27. Bxh6 {[%clk 0:01:04.6]} 27... Rxh6 {[%clk 0:02:02.2]}
28. Rd7 {[%clk 0:00:54.6]} 28... Be4 {[%clk 0:02:01.5]} 29. Rxb7 {[%clk
0:00:51.1]} 29... Rxb7 {[%clk 0:01:58.3]} 30. Nd6+ {[%clk 0:00:51.3]} 30... Ke7
{[%clk 0:01:58.6]} 31. Nxb7 {[%clk 0:00:51.8]} 31... Bxg2 {[%clk 0:01:58.9]} 32.
Nc5 {[%clk 0:00:50.7]} 32... Rh5 {[%clk 0:01:56.6]} 33. Nxa6 {[%clk 0:00:44.9]}
33... Rxe5 {[%clk 0:01:55.5]} 34. Nc5 {[%clk 0:00:45.4]} 34... Bf3 {[%clk
0:01:43]} 35. Rd7+ {[%clk 0:00:44.8]} 35... Ke8 {[%clk 0:01:42.7]} 36. Rb7
{[%clk 0:00:42.9]} 36... Re1+ {[%clk 0:01:37.9]} 37. Kb2 {[%clk 0:00:42.9]}
37... Be2 {[%clk 0:01:37.6]} 38. Rb8+ {[%clk 0:00:31.1]} 38... Ke7 {[%clk
0:01:37.7]} 39. Rh8 {[%clk 0:00:31.5]} 39... h3 {[%clk 0:01:37.5]} 40. Rg8
{[%clk 0:00:27.7]} 40... Rf1 {[%clk 0:01:36.5]} 41. a6 {[%clk 0:00:27.1]} 41...
Bxa6 {[%clk 0:01:36.5]} 42. Nxa6 {[%clk 0:00:28]} 42... f5 {[%clk 0:01:36.9]}
43. Nb8 {[%clk 0:00:27.1]} 43... Rxf2 {[%clk 0:01:35.5]} 44. Nxc6+ {[%clk
0:00:27.5]} 44... Kf7 {[%clk 0:01:36.1]} 45. Rh8 {[%clk 0:00:26.2]} 45... Rxh2
{[%clk 0:01:35.9]} 46. b5 {[%clk 0:00:26.6]} 46... Rd2 {[%clk 0:01:28.8]} 47. b6
{[%clk 0:00:26]} 47... Rd6 {[%clk 0:01:27.3]} 48. b7 {[%clk 0:00:25.3]} 48...
Rxc6 {[%clk 0:01:27.3]} 49. b8=Q {[%clk 0:00:25.6]} 1-0

[Event "*** Titled Tuesday Blitz"]
[Site "Chess.com"]
[Date "2020.05.12"]
[Round "3"]
[White "Andrii_Prydun"]
[Black "MikeKorovin"]
[Result "1-0"]
[WhiteElo "2421"]
[BlackElo "2626"]
[TimeControl "180+1"]
[EndTime "10:27:26 PDT"]
[Termination "Andrii_Prydun won by resignation"]

1. d4 {[%clk 0:03:00.9]} 1... Nf6 {[%clk 0:02:50.3]} 2. Nc3 {[%clk 0:03:00.8]}
2... e6 {[%clk 0:02:47.3]} 3. e4 {[%clk 0:03:00.1]} 3... d5 {[%clk 0:02:37.4]}
4. Bg5 {[%clk 0:02:59.6]} 4... Be7 {[%clk 0:02:35.9]} 5. exd5 {[%clk 0:02:55.7]}
5... exd5 {[%clk 0:02:34.8]} 6. Bd3 {[%clk 0:02:56]} 6... Nc6 {[%clk 0:02:32.5]}
7. Nge2 {[%clk 0:02:55.9]} 7... h6 {[%clk 0:02:26.1]} 8. Bh4 {[%clk 0:02:55.6]}
8... O-O {[%clk 0:02:25.9]} 9. O-O {[%clk 0:02:55.3]} 9... Nb4 {[%clk
0:02:24.2]} 10. Re1 {[%clk 0:02:45.2]} 10... Re8 {[%clk 0:01:38.4]} 11. Bg3
{[%clk 0:02:27.2]} 11... Bd6 {[%clk 0:01:13.6]} 12. a3 {[%clk 0:01:54.7]} 12...
Nxd3 {[%clk 0:01:07.9]} 13. Qxd3 {[%clk 0:01:55.5]} 13... Bxg3 {[%clk
0:00:56.6]} 14. Nxg3 {[%clk 0:01:55.3]} 14... c6 {[%clk 0:00:52.8]} 15. Re5
{[%clk 0:01:41.2]} 15... Ng4 {[%clk 0:00:45.8]} 16. Rxe8+ {[%clk 0:01:39.2]}
16... Qxe8 {[%clk 0:00:46.7]} 17. h3 {[%clk 0:01:30.9]} 17... Nf6 {[%clk
0:00:43.5]} 18. Qd2 {[%clk 0:01:24.3]} 18... Bd7 {[%clk 0:00:38.6]} 19. Re1
{[%clk 0:01:22.2]} 19... Qd8 {[%clk 0:00:34.8]} 20. Qf4 {[%clk 0:01:22.2]} 20...
Qb6 {[%clk 0:00:35.1]} 21. b4 {[%clk 0:01:16.2]} 21... Re8 {[%clk 0:00:26.8]}
22. Rxe8+ {[%clk 0:01:14.2]} 22... Nxe8 {[%clk 0:00:27.7]} 23. Qb8 {[%clk
0:01:14.2]} 23... Qxd4 {[%clk 0:00:14.8]} 24. Nge2 {[%clk 0:01:10.4]} 24... Qb6
{[%clk 0:00:11.4]} 25. Na4 {[%clk 0:01:10.1]} 25... Qc7 {[%clk 0:00:11.5]} 26.
Qa8 {[%clk 0:01:09.3]} 26... b6 {[%clk 0:00:10.7]} 27. Nac3 {[%clk 0:00:54.3]}
27... Kf8 {[%clk 0:00:08.6]} 28. b5 {[%clk 0:00:54.5]} 28... Ke7 {[%clk
0:00:06.2]} 29. Nd4 {[%clk 0:00:53.6]} 29... Kd6 {[%clk 0:00:02.8]} 30. bxc6
{[%clk 0:00:52.1]} 30... Bc8 {[%clk 0:00:02.3]} 31. Ncb5+ {[%clk 0:00:52]} 31...
Kc5 {[%clk 0:00:02.8]} 1-0

[Event "*** Titled Tuesday Blitz"]
[Site "Chess.com"]
[Date "2020.05.12"]
[Round "3"]
[White "2L8IWUN"]
[Black "politeplayer"]
[Result "1-0"]
[WhiteElo "2437"]
[BlackElo "2201"]
[TimeControl "180+1"]
[EndTime "10:27:26 PDT"]
[Termination "2L8IWUN won on time"]

1. Nf3 {[%clk 0:03:00.9]} 1... Nf6 {[%clk 0:02:58.7]} 2. c4 {[%clk 0:02:59.8]}
2... c5 {[%clk 0:02:57.9]} 3. b3 {[%clk 0:02:59.8]} 3... e6 {[%clk 0:02:56.4]}
4. Bb2 {[%clk 0:02:59.3]} 4... d5 {[%clk 0:02:57]} 5. e3 {[%clk 0:02:58.4]} 5...
Nc6 {[%clk 0:02:56.4]} 6. cxd5 {[%clk 0:02:57.5]} 6... exd5 {[%clk 0:02:54.3]}
7. Bb5 {[%clk 0:02:57.3]} 7... Bd6 {[%clk 0:02:46.2]} 8. O-O {[%clk 0:02:57.1]}
8... Bg4 {[%clk 0:02:39.3]} 9. Be2 {[%clk 0:02:46.8]} 9... O-O {[%clk
0:02:33.5]} 10. h3 {[%clk 0:02:42.7]} 10... Bh5 {[%clk 0:02:06.3]} 11. d4 {[%clk
0:02:43.2]} 11... Re8 {[%clk 0:01:41.7]} 12. dxc5 {[%clk 0:02:43.2]} 12... Bxc5
{[%clk 0:01:41.9]} 13. Nc3 {[%clk 0:02:41.8]} 13... a6 {[%clk 0:01:23.7]} 14.
Rc1 {[%clk 0:02:39.7]} 14... Ba7 {[%clk 0:01:21.3]} 15. Na4 {[%clk 0:02:34.5]}
15... Qd6 {[%clk 0:01:14.8]} 16. Nh4 {[%clk 0:02:03.6]} 16... Bxe2 {[%clk
0:00:59.8]} 17. Qxe2 {[%clk 0:02:04.5]} 17... d4 {[%clk 0:00:35.2]} 18. Nf5
{[%clk 0:01:33.7]} 18... Qd5 {[%clk 0:00:34.5]} 19. Qf3 {[%clk 0:01:22.8]} 19...
Qxf3 {[%clk 0:00:29.3]} 20. gxf3 {[%clk 0:01:23.7]} 20... dxe3 {[%clk
0:00:20.2]} 21. Nxe3 {[%clk 0:01:24.6]} 21... Bxe3 {[%clk 0:00:16.6]} 22. fxe3
{[%clk 0:01:24.2]} 22... Rxe3 {[%clk 0:00:16.4]} 23. Bxf6 {[%clk 0:01:24.8]}
23... gxf6 {[%clk 0:00:15.9]} 24. Nc5 {[%clk 0:01:23.2]} 24... Re2 {[%clk
0:00:13.5]} 25. Rf2 {[%clk 0:01:21.7]} 25... Rxf2 {[%clk 0:00:12.7]} 26. Kxf2
{[%clk 0:01:22.6]} 26... Ne5 {[%clk 0:00:13.1]} 27. f4 {[%clk 0:01:20.8]} 27...
Ng6 {[%clk 0:00:11.1]} 28. Nxb7 {[%clk 0:01:21]} 28... Rb8 {[%clk 0:00:10.8]}
29. Nc5 {[%clk 0:01:18.9]} 29... Nxf4 {[%clk 0:00:10.6]} 30. Nxa6 {[%clk
0:01:18.6]} 30... Nd3+ {[%clk 0:00:10.6]} 31. Ke3 {[%clk 0:01:17.7]} 31... Rd8
{[%clk 0:00:09.3]} 32. Rd1 {[%clk 0:01:15.6]} 32... Rd6 {[%clk 0:00:08.9]} 33.
Nc5 {[%clk 0:01:11]} 1-0

[Event "*** Titled Tuesday Blitz"]
[Site "Chess.com"]
[Date "2020.05.12"]
[Round "3"]
[White "Morshynska"]
[Black "THE_PLAYER6"]
[Result "0-1"]
[WhiteElo "2161"]
[BlackElo "2475"]
[TimeControl "180+1"]
[EndTime "10:27:27 PDT"]
[Termination "THE_PLAYER6 won on time"]

1. e4 {[%clk 0:03:00.9]} 1... c5 {[%clk 0:02:59.2]} 2. Nf3 {[%clk 0:03:00.2]}
2... d6 {[%clk 0:02:59.4]} 3. c4 {[%clk 0:02:59.2]} 3... Nf6 {[%clk 0:02:58.1]}
4. Nc3 {[%clk 0:02:58.5]} 4... e5 {[%clk 0:02:56.1]} 5. d3 {[%clk 0:02:55.5]}
5... Nc6 {[%clk 0:02:56.3]} 6. Be2 {[%clk 0:02:55.1]} 6... Nd4 {[%clk
0:02:56.1]} 7. Nxd4 {[%clk 0:02:50.7]} 7... cxd4 {[%clk 0:02:54.3]} 8. Nd5
{[%clk 0:02:44.6]} 8... Nxd5 {[%clk 0:02:53.6]} 9. cxd5 {[%clk 0:02:45.5]} 9...
Be7 {[%clk 0:02:52.4]} 10. O-O {[%clk 0:02:41.7]} 10... O-O {[%clk 0:02:51.3]}
11. f4 {[%clk 0:02:41.5]} 11... f5 {[%clk 0:02:46.7]} 12. Bf3 {[%clk 0:02:37.6]}
12... Bf6 {[%clk 0:02:33.3]} 13. exf5 {[%clk 0:02:05.8]} 13... Bxf5 {[%clk
0:02:32.6]} 14. g4 {[%clk 0:02:04.7]} 14... Bd7 {[%clk 0:02:30]} 15. Be4 {[%clk
0:02:00.9]} 15... exf4 {[%clk 0:02:28.1]} 16. Bxf4 {[%clk 0:01:57.2]} 16... Be5
{[%clk 0:02:28.4]} 17. Bxe5 {[%clk 0:01:53.6]} 17... dxe5 {[%clk 0:02:29.3]} 18.
Qe2 {[%clk 0:01:08.6]} 18... Qh4 {[%clk 0:02:26.9]} 19. Bf5 {[%clk 0:01:00.2]}
19... Bxf5 {[%clk 0:02:24.3]} 20. gxf5 {[%clk 0:01:00.1]} 20... Qg5+ {[%clk
0:02:23]} 21. Kh1 {[%clk 0:00:58.7]} 21... Rxf5 {[%clk 0:02:22.8]} 22. Rxf5
{[%clk 0:00:57.3]} 22... Qxf5 {[%clk 0:02:23.7]} 23. Rf1 {[%clk 0:00:57.2]}
23... Qg5 {[%clk 0:02:23.3]} 24. Qf3 {[%clk 0:00:53.7]} 24... h6 {[%clk
0:02:21]} 25. Qf7+ {[%clk 0:00:46.2]} 25... Kh7 {[%clk 0:02:18.1]} 26. Qxb7
{[%clk 0:00:43.2]} 26... Rd8 {[%clk 0:02:13.5]} 27. Qf7 {[%clk 0:00:37.1]} 27...
Rd6 {[%clk 0:02:06.1]} 28. Qf5+ {[%clk 0:00:24.3]} 28... Qxf5 {[%clk 0:02:04.5]}
29. Rxf5 {[%clk 0:00:25.2]} 29... Rxd5 {[%clk 0:02:05.1]} 30. Rf7 {[%clk
0:00:13.9]} 30... a5 {[%clk 0:02:04.9]} 31. Kg2 {[%clk 0:00:12.5]} 31... Rb5
{[%clk 0:02:04.9]} 32. b3 {[%clk 0:00:12.2]} 32... a4 {[%clk 0:02:05.4]} 33. Kf3
{[%clk 0:00:09.1]} 33... axb3 {[%clk 0:02:05.3]} 34. axb3 {[%clk 0:00:10]} 34...
Rxb3 {[%clk 0:02:05.9]} 35. Ke4 {[%clk 0:00:09.3]} 35... Rb2 {[%clk 0:02:04.9]}
36. h3 {[%clk 0:00:09.3]} 36... Re2+ {[%clk 0:02:04.9]} 37. Kd5 {[%clk
0:00:08.9]} 37... Re3 {[%clk 0:02:04]} 38. Re7 {[%clk 0:00:07]} 38... Kg6 {[%clk
0:02:02.9]} 39. h4 {[%clk 0:00:06.7]} 39... Kh5 {[%clk 0:02:02.7]} 40. Rxg7
{[%clk 0:00:06]} 40... Kxh4 {[%clk 0:02:03]} 41. Rg6 {[%clk 0:00:05.2]} 41... h5
{[%clk 0:02:03.2]} 42. Rg8 {[%clk 0:00:05.3]} 42... Kh3 {[%clk 0:02:03.4]} 43.
Rg7 {[%clk 0:00:05.4]} 43... h4 {[%clk 0:02:03.5]} 44. Rg8 {[%clk 0:00:04.7]}
44... Kh2 {[%clk 0:02:04]} 45. Rg7 {[%clk 0:00:04.3]} 45... h3 {[%clk
0:02:04.4]} 46. Rg8 {[%clk 0:00:04.3]} 46... Rg3 {[%clk 0:02:04.6]} 47. Re8
{[%clk 0:00:04.2]} 47... Re3 {[%clk 0:02:03]} 48. Rg8 {[%clk 0:00:04]} 48... Kh1
{[%clk 0:02:03.1]} 49. Rg7 {[%clk 0:00:03.8]} 49... h2 {[%clk 0:02:03.3]} 50.
Rg8 {[%clk 0:00:03.3]} 50... Rxd3 {[%clk 0:02:03.1]} 51. Kxe5 {[%clk 0:00:03.2]}
51... Rd2 {[%clk 0:02:03.2]} 52. Ke4 {[%clk 0:00:03]} 52... Rg2 {[%clk
0:02:00.7]} 53. Ra8 {[%clk 0:00:01.3]} 53... Kg1 {[%clk 0:01:59.7]} 0-1

[Event "*** Titled Tuesday Blitz"]
[Site "Chess.com"]
[Date "2020.05.12"]
[Round "3"]
[White "axvesik"]
[Black "Xeniya2005"]
[Result "1-0"]
[WhiteElo "2511"]
[BlackElo "2256"]
[TimeControl "180+1"]
[EndTime "10:27:28 PDT"]
[Termination "axvesik won by resignation"]

1. e4 {[%clk 0:03:00.9]} 1... e6 {[%clk 0:02:58.4]} 2. d4 {[%clk 0:03:00.6]}
2... d5 {[%clk 0:02:55.7]} 3. Nc3 {[%clk 0:03:01.5]} 3... Bb4 {[%clk 0:02:54.5]}
4. exd5 {[%clk 0:03:01.2]} 4... exd5 {[%clk 0:02:54.3]} 5. Bd3 {[%clk
0:03:02.1]} 5... Nc6 {[%clk 0:02:51.1]} 6. a3 {[%clk 0:03:01.1]} 6... Bxc3+
{[%clk 0:02:47.3]} 7. bxc3 {[%clk 0:03:00.7]} 7... Qf6 {[%clk 0:02:34.1]} 8. Nf3
{[%clk 0:02:52.4]} 8... Bf5 {[%clk 0:02:19.8]} 9. Qe2+ {[%clk 0:02:33.5]} 9...
Nge7 {[%clk 0:02:15]} 10. O-O {[%clk 0:02:20.8]} 10... Bxd3 {[%clk 0:01:59.4]}
11. cxd3 {[%clk 0:02:20.1]} 11... h6 {[%clk 0:01:56.2]} 12. Rb1 {[%clk
0:02:18.7]} 12... b6 {[%clk 0:01:50.6]} 13. Ne5 {[%clk 0:02:17.1]} 13... Nxe5
{[%clk 0:01:32.4]} 14. dxe5 {[%clk 0:02:13.5]} 14... Qe6 {[%clk 0:01:32]} 15. d4
{[%clk 0:02:11.9]} 15... O-O {[%clk 0:01:31.3]} 16. f4 {[%clk 0:02:11.1]} 16...
f5 {[%clk 0:01:30]} 17. a4 {[%clk 0:02:06.4]} 17... Rfc8 {[%clk 0:01:05.6]} 18.
Ba3 {[%clk 0:02:00.8]} 18... Nc6 {[%clk 0:00:57.6]} 19. h3 {[%clk 0:01:43.5]}
19... Na5 {[%clk 0:00:42.8]} 20. Rbe1 {[%clk 0:01:42.5]} 20... Nc4 {[%clk
0:00:40.1]} 21. Bc1 {[%clk 0:01:42.4]} 21... Rf8 {[%clk 0:00:31.8]} 22. g4
{[%clk 0:01:41.7]} 22... c5 {[%clk 0:00:22.9]} 23. Kh2 {[%clk 0:01:40.9]} 23...
Rae8 {[%clk 0:00:19.5]} 24. Rg1 {[%clk 0:01:38]} 24... Re7 {[%clk 0:00:18.1]}
25. Rg2 {[%clk 0:01:34.6]} 25... Kh7 {[%clk 0:00:10.1]} 26. Reg1 {[%clk
0:01:33.8]} 26... Ref7 {[%clk 0:00:06.7]} 27. g5 {[%clk 0:01:31.9]} 27... g6
{[%clk 0:00:03.9]} 28. gxh6 {[%clk 0:01:30.4]} 28... Rg8 {[%clk 0:00:04.2]} 29.
Be3 {[%clk 0:01:24.2]} 29... Kxh6 {[%clk 0:00:02.2]} 30. Bf2 {[%clk 0:01:24.1]}
30... Kh7 {[%clk 0:00:01.7]} 31. Bh4 {[%clk 0:01:24.2]} 31... Rfg7 {[%clk
0:00:01.5]} 32. Bf6 {[%clk 0:01:23.9]} 32... Rf7 {[%clk 0:00:02]} 33. Qf2 {[%clk
0:01:23.4]} 33... Rxf6 {[%clk 0:00:01.8]} 34. Qh4+ {[%clk 0:01:23.3]} 34... Kg7
{[%clk 0:00:02]} 35. exf6+ {[%clk 0:01:23.5]} 35... Qxf6 {[%clk 0:00:02.9]} 36.
Rxg6+ {[%clk 0:01:19.1]} 36... Qxg6 {[%clk 0:00:03.8]} 37. Rxg6+ {[%clk
0:01:19.3]} 37... Kxg6 {[%clk 0:00:04.5]} 38. dxc5 {[%clk 0:01:14.6]} 38... bxc5
{[%clk 0:00:04.3]} 39. Qg5+ {[%clk 0:01:14.8]} 39... Kf7 {[%clk 0:00:04]} 40.
Qxf5+ {[%clk 0:01:15.5]} 40... Ke7 {[%clk 0:00:04]} 41. Qxd5 {[%clk 0:01:15.4]}
1-0

[Event "*** Titled Tuesday Blitz"]
[Site "Chess.com"]
[Date "2020.05.12"]
[Round "3"]
[White "Rodalquilar"]
[Black "1f3_2g41-0"]
[Result "1-0"]
[WhiteElo "2610"]
[BlackElo "2302"]
[TimeControl "180+1"]
[EndTime "10:27:29 PDT"]
[Termination "Rodalquilar won by checkmate"]

1. e4 {[%clk 0:02:50.2]} 1... c5 {[%clk 0:02:58.7]} 2. Nc3 {[%clk 0:02:50]} 2...
Nc6 {[%clk 0:02:53.2]} 3. Bb5 {[%clk 0:02:50]} 3... a6 {[%clk 0:02:42.9]} 4.
Bxc6 {[%clk 0:02:50.1]} 4... dxc6 {[%clk 0:02:42.6]} 5. f4 {[%clk 0:02:51]} 5...
e5 {[%clk 0:02:41.2]} 6. d3 {[%clk 0:02:50.1]} 6... Bd6 {[%clk 0:02:40.1]} 7.
Nf3 {[%clk 0:02:49.5]} 7... exf4 {[%clk 0:02:37.2]} 8. e5 {[%clk 0:02:50.4]}
8... Bc7 {[%clk 0:02:28]} 9. Bxf4 {[%clk 0:02:49.4]} 9... Be6 {[%clk 0:02:26.1]}
10. O-O {[%clk 0:02:49.1]} 10... h6 {[%clk 0:02:22.1]} 11. Qd2 {[%clk
0:02:48.7]} 11... Ne7 {[%clk 0:02:16.3]} 12. b3 {[%clk 0:02:47.2]} 12... g5
{[%clk 0:02:09]} 13. Bg3 {[%clk 0:02:47.3]} 13... Nf5 {[%clk 0:02:00.4]} 14. Bf2
{[%clk 0:02:47.4]} 14... Nd4 {[%clk 0:01:52]} 15. Nxd4 {[%clk 0:02:45.1]} 15...
cxd4 {[%clk 0:01:51.6]} 16. Ne4 {[%clk 0:02:46]} 16... Bxe5 {[%clk 0:01:50.8]}
17. Bg3 {[%clk 0:00:56.7]} 17... Bxg3 {[%clk 0:01:47]} 18. Nf6+ {[%clk
0:00:56.9]} 18... Kf8 {[%clk 0:01:47]} 19. hxg3 {[%clk 0:00:57.3]} 19... Kg7
{[%clk 0:01:41.3]} 20. Rae1 {[%clk 0:00:56.8]} 20... Qd6 {[%clk 0:01:34.6]} 21.
Qf2 {[%clk 0:00:53.5]} 21... h5 {[%clk 0:01:09]} 22. Ne4 {[%clk 0:00:51.2]}
22... Qe5 {[%clk 0:00:58.7]} 23. Nd2 {[%clk 0:00:32.5]} 23... Qd5 {[%clk
0:00:48]} 24. Qf6+ {[%clk 0:00:31.6]} 24... Kh7 {[%clk 0:00:45.2]} 25. Re5
{[%clk 0:00:30.3]} 25... Qd8 {[%clk 0:00:45.5]} 26. Rxe6 {[%clk 0:00:25.2]}
26... fxe6 {[%clk 0:00:40.2]} 27. Qf7+ {[%clk 0:00:25.4]} 27... Kh6 {[%clk
0:00:40.7]} 28. Rf6+ {[%clk 0:00:24.9]} 28... Qxf6 {[%clk 0:00:41.3]} 29. Qxf6+
{[%clk 0:00:25.8]} 29... Kh7 {[%clk 0:00:41.6]} 30. Ne4 {[%clk 0:00:25.9]} 30...
Kg8 {[%clk 0:00:31.6]} 31. Nxg5 {[%clk 0:00:25.2]} 31... Rf8 {[%clk 0:00:26.3]}
32. Qg6# {[%clk 0:00:25.1]} 1-0

[Event "*** Titled Tuesday Blitz"]
[Site "Chess.com"]
[Date "2020.05.12"]
[Round "3"]
[White "Abund"]
[Black "sergiochess83"]
[Result "1/2-1/2"]
[WhiteElo "2625"]
[BlackElo "2819"]
[TimeControl "180+1"]
[EndTime "10:27:30 PDT"]
[Termination "Game drawn by agreement"]

1. d4 {[%clk 0:03:00.9]} 1... Nf6 {[%clk 0:02:59.5]} 2. c4 {[%clk 0:02:59.7]}
2... e6 {[%clk 0:02:59.1]} 3. Nf3 {[%clk 0:02:58.7]} 3... d5 {[%clk 0:02:58.9]}
4. Nc3 {[%clk 0:02:58.3]} 4... c5 {[%clk 0:02:58.5]} 5. cxd5 {[%clk 0:02:57.7]}
5... Nxd5 {[%clk 0:02:58.8]} 6. e4 {[%clk 0:02:58.1]} 6... Nxc3 {[%clk
0:02:58.9]} 7. bxc3 {[%clk 0:02:59]} 7... cxd4 {[%clk 0:02:59.8]} 8. cxd4 {[%clk
0:02:59.3]} 8... Bb4+ {[%clk 0:03:00.4]} 9. Bd2 {[%clk 0:02:59.9]} 9... Bxd2+
{[%clk 0:03:00.6]} 10. Qxd2 {[%clk 0:03:00.8]} 10... O-O {[%clk 0:03:01.2]} 11.
Bc4 {[%clk 0:03:01.1]} 11... Nd7 {[%clk 0:03:00.6]} 12. O-O {[%clk 0:03:01.1]}
12... b6 {[%clk 0:03:01]} 13. Rfe1 {[%clk 0:03:01.3]} 13... Bb7 {[%clk
0:03:01.4]} 14. Rad1 {[%clk 0:03:02]} 14... Rc8 {[%clk 0:03:00.8]} 15. Bb3
{[%clk 0:03:02.6]} 15... h6 {[%clk 0:03:01.4]} 16. h3 {[%clk 0:02:39.3]} 16...
Nf6 {[%clk 0:02:57.7]} 17. Qf4 {[%clk 0:02:22.8]} 17... Qc7 {[%clk 0:02:52.2]}
18. Ne5 {[%clk 0:01:56.8]} 18... Nd7 {[%clk 0:02:50.3]} 19. Nd3 {[%clk
0:01:48.2]} 19... Qxf4 {[%clk 0:02:40.1]} 20. Nxf4 {[%clk 0:01:49.1]} 20... Rfe8
{[%clk 0:02:36.9]} 21. f3 {[%clk 0:01:42.7]} 21... Kf8 {[%clk 0:02:36.3]} 22.
Kf2 {[%clk 0:01:39.7]} 22... b5 {[%clk 0:02:32.9]} 23. Rc1 {[%clk 0:01:36.3]}
23... Nb6 {[%clk 0:02:29]} 24. Ke3 {[%clk 0:01:31.4]} 24... a5 {[%clk
0:02:17.5]} 25. a3 {[%clk 0:01:28.8]} 25... Ke7 {[%clk 0:02:10.2]} 26. Nd3
{[%clk 0:01:24.9]} 26... Nd7 {[%clk 0:02:07.6]} 27. h4 {[%clk 0:01:15.4]} 27...
g5 {[%clk 0:01:54.6]} 28. Rh1 {[%clk 0:01:02.7]} 28... Rxc1 {[%clk 0:01:49.1]}
29. Rxc1 {[%clk 0:01:00.4]} 29... Rc8 {[%clk 0:01:49.5]} 30. Rxc8 {[%clk
0:00:55.2]} 30... Bxc8 {[%clk 0:01:50.4]} 31. hxg5 {[%clk 0:00:54.6]} 31... hxg5
{[%clk 0:01:51.3]} 32. Nc5 {[%clk 0:00:46.7]} 32... Nxc5 {[%clk 0:01:21.9]} 33.
dxc5 {[%clk 0:00:46.6]} 33... e5 {[%clk 0:01:22.8]} 34. Bd5 {[%clk 0:00:46.5]}
34... f6 {[%clk 0:01:16.5]} 35. Kd3 {[%clk 0:00:32.8]} 35... Kd7 {[%clk
0:01:14.1]} 36. Kc3 {[%clk 0:00:32.5]} 36... Kc7 {[%clk 0:01:14]} 37. g4 {[%clk
0:00:18.6]} 37... Bd7 {[%clk 0:01:09]} 38. Kb3 {[%clk 0:00:17.8]} 1/2-1/2

[Event "*** Titled Tuesday Blitz"]
[Site "Chess.com"]
[Date "2020.05.12"]
[Round "3"]
[White "gross-aleks"]
[Black "grandcoach"]
[Result "1-0"]
[WhiteElo "2467"]
[BlackElo "2026"]
[TimeControl "180+1"]
[EndTime "10:27:30 PDT"]
[Termination "gross-aleks won on time"]

1. c4 {[%clk 0:02:57.1]} 1... Nf6 {[%clk 0:02:58.8]} 2. Nf3 {[%clk 0:02:56.7]}
2... e6 {[%clk 0:02:58.8]} 3. b3 {[%clk 0:02:55.5]} 3... d5 {[%clk 0:02:56.2]}
4. Bb2 {[%clk 0:02:55.6]} 4... c5 {[%clk 0:02:55.8]} 5. e3 {[%clk 0:02:55.4]}
5... Be7 {[%clk 0:02:54.5]} 6. cxd5 {[%clk 0:02:55.4]} 6... exd5 {[%clk
0:02:49.9]} 7. Bb5+ {[%clk 0:02:53.5]} 7... Nc6 {[%clk 0:02:49]} 8. Ne5 {[%clk
0:02:51.4]} 8... Qc7 {[%clk 0:02:40.7]} 9. O-O {[%clk 0:02:40.7]} 9... O-O
{[%clk 0:02:37.6]} 10. Nxc6 {[%clk 0:02:40.2]} 10... bxc6 {[%clk 0:02:38.2]} 11.
Be2 {[%clk 0:02:40.4]} 11... Rb8 {[%clk 0:02:22.5]} 12. d3 {[%clk 0:02:38.1]}
12... Bf5 {[%clk 0:02:17.4]} 13. Nd2 {[%clk 0:02:35.7]} 13... Rfd8 {[%clk
0:02:08.3]} 14. g3 {[%clk 0:02:34.9]} 14... Bh3 {[%clk 0:01:57]} 15. Re1 {[%clk
0:02:33.2]} 15... Nd7 {[%clk 0:01:26.8]} 16. Rc1 {[%clk 0:02:31.8]} 16... Ne5
{[%clk 0:01:24.5]} 17. d4 {[%clk 0:01:54.7]} 17... cxd4 {[%clk 0:01:13.7]} 18.
Bxd4 {[%clk 0:01:54.1]} 18... c5 {[%clk 0:00:54.2]} 19. Ba1 {[%clk 0:01:44.3]}
19... Qd6 {[%clk 0:00:50.2]} 20. Nf3 {[%clk 0:01:42.1]} 20... Nxf3+ {[%clk
0:00:38.2]} 21. Bxf3 {[%clk 0:01:41.6]} 21... d4 {[%clk 0:00:38]} 22. exd4
{[%clk 0:01:40.6]} 22... cxd4 {[%clk 0:00:37.9]} 23. Qxd4 {[%clk 0:01:35.9]}
23... Qxd4 {[%clk 0:00:35.5]} 24. Bxd4 {[%clk 0:01:36.8]} 24... Rxd4 {[%clk
0:00:35.7]} 25. Rxe7 {[%clk 0:01:36.5]} 25... Rd2 {[%clk 0:00:32.1]} 26. Rxa7
{[%clk 0:01:35.7]} 26... g6 {[%clk 0:00:20.6]} 27. Bg2 {[%clk 0:01:33.6]} 27...
Bxg2 {[%clk 0:00:19.1]} 28. Kxg2 {[%clk 0:01:33.4]} 28... Re8 {[%clk 0:00:19]}
29. Rcc7 {[%clk 0:01:31.7]} 29... Ree2 {[%clk 0:00:14.1]} 30. Rxf7 {[%clk
0:01:30.8]} 30... Rxa2 {[%clk 0:00:14.7]} 31. Rxa2 {[%clk 0:01:29.6]} 31... Rxa2
{[%clk 0:00:13.7]} 32. Rf4 {[%clk 0:01:26.9]} 32... Rb2 {[%clk 0:00:10.3]} 33.
b4 {[%clk 0:01:26.7]} 33... Kg7 {[%clk 0:00:08.7]} 34. h4 {[%clk 0:01:26.3]}
34... Rb3 {[%clk 0:00:08.6]} 35. g4 {[%clk 0:01:18.7]} 35... h6 {[%clk
0:00:02.3]} 36. f3 {[%clk 0:01:10.4]} 1-0